bitfinex/quotes_SOLUSD_20250419
["timestamp","ask_amount","ask_price","bid_price","bid_amount"]
[1745039262651,56.45034614,138.22,138.2,0.063]
[1745039266770,61.74748825,138.22,138.2,0.063]
[1745039269155,61.72748825,138.22,138.2,0.063]
[1745039269767,34.77034614,138.22,138.2,0.063]
[1745039273470,56.43034614,138.22,138.2,0.063]
[1745039276091,64.40686548,138.22,138.2,0.063]
[1745039281296,64.40686548,138.22,138.13,0.063]
[1745039281488,40.30964886,138.2,138.13,0.063]
[1745039281682,46.94870278,138.2,138.13,0.063]
[1745039282194,49.60686548,138.2,138.13,0.063]
[1745039283496,40.30964886,138.18,138.13,0.063]
[1745039283687,40.30964886,138.16,138.13,0.063]
[1745039283889,40.30964886,138.14,138.13,0.063]
[1745039284088,41.63034614,138.14,138.13,0.063]
[1745039284399,46.94870278,138.14,138.13,0.063]
[1745039284799,49.60686548,138.14,138.13,0.063]
[1745039285503,19.97034614,138.14,138.13,0.063]
[1745039285691,33.46964886,138.16,138.13,0.063]
[1745039287005,18.64964886,138.14,138.13,0.063]
[1745039287304,33.46964886,138.16,138.13,0.063]
[1745039287902,21.66,138.17,138.13,0.063]
[1745039287903,248.16,138.26,138.13,0.063]
[1745039288101,14.82,138.25,138.13,0.063]
[1745039288302,21.66,138.24,138.13,0.063]
[1745039288507,40.30964886,138.21,138.13,0.063]
[1745039288688,14.82,138.2,138.13,0.063]
[1745039289696,18.64964886,138.18,138.13,0.063]
[1745039290807,40.30964886,138.22,138.13,0.063]
[1745039290993,14.82,138.21,138.13,0.063]
[1745039291193,18.64964886,138.19,138.13,0.063]
[1745039301119,40.30964886,138.2,138.13,0.063]
[1745039301418,18.64964886,138.18,138.13,0.063]
[1745039303245,18.64964886,138.19,138.13,0.063]
[1745039303746,19.97034614,138.2,138.13,0.063]
[1745039303924,2.67263228,138.18,138.13,0.063]
[1745039304644,21.32228114,138.19,138.13,0.063]
[1745039305836,18.64964886,138.19,138.13,0.063]
[1745039307844,1.32069728,138.2,138.13,0.063]
[1745039308042,18.64964886,138.19,138.13,0.063]
[1745039308655,5.34358829,138.18,138.13,0.063]
[1745039312541,18.64964886,138.19,138.13,0.063]
[1745039312733,18.64964886,138.2,138.13,0.063]
[1745039317557,18.64964886,138.19,138.13,0.063]
[1745039317745,14.82,138.21,138.13,0.063]
[1745039317947,21.32156372,138.2,138.13,0.063]
[1745039318761,42.98156372,138.2,138.13,0.063]
[1745039318942,40.30964886,138.2,138.13,0.063]
[1745039319459,5.34532999,138.19,138.13,0.063]
[1745039319957,18.64964886,138.18,138.13,0.063]
[1745039321664,40.30964886,138.19,138.13,0.063]
[1745039322269,2.67228467,138.18,138.13,0.063]
[1745039322440,8.01712606,138.18,138.13,0.063]
[1745039323059,5.34484139,138.18,138.13,0.063]
[1745039323260,40.30964886,138.2,138.13,0.063]
[1745039324061,8.01829534,138.19,138.13,0.063]
[1745039324561,5.34565692,138.19,138.13,0.063]
[1745039326465,18.64964886,138.2,138.13,0.063]
[1745039328255,5.3531204,138.19,138.13,0.063]
[1745039329163,27.0131204,138.19,138.13,0.063]
[1745039329464,5.3531204,138.19,138.13,0.063]
[1745039329666,18.64964886,138.2,138.13,0.063]
[1745039329960,2.67969491,138.19,138.13,0.063]
[1745039330171,2.67969491,138.18,138.13,0.063]
[1745039330966,18.64964886,138.2,138.13,0.063]
[1745039331168,5.36755758,138.19,138.13,0.063]
[1745039331868,5.36755758,138.18,138.13,0.063]
[1745039332972,18.64964886,138.2,138.13,0.063]
[1745039334073,18.64964886,138.18,138.13,0.063]
[1745039335276,5.37967042,138.17,138.13,0.063]
[1745039336374,18.64964886,138.2,138.13,0.063]
[1745039336873,5.38112377,138.19,138.13,0.063]
[1745039337176,18.64964886,138.18,138.13,0.063]
[1745039337574,8.07167432,138.19,138.13,0.063]
[1745039337964,2.69055055,138.18,138.13,0.063]
[1745039338167,5.38112377,138.17,138.13,0.063]
[1745039339162,18.64964886,138.2,138.13,0.063]
[1745039339477,2.69061806,138.19,138.13,0.063]
[1745039339963,5.38124818,138.18,138.13,0.063]
[1745039341085,8.07180695,138.17,138.13,0.063]
[1745039342190,40.30964886,138.2,138.13,0.063]
[1745039342984,2.69004058,138.19,138.13,0.063]
[1745039343183,5.38022943,138.18,138.13,0.063]
[1745039344206,18.64964886,138.2,138.13,0.063]
[1745039345203,2.68987209,138.19,138.13,0.063]
[1745039346301,18.64964886,138.2,138.13,0.063]
[1745039346701,5.37976348,138.19,138.13,0.063]
[1745039347483,5.37976348,138.18,138.13,0.063]
[1745039348395,18.64964886,138.2,138.13,0.063]
[1745039348705,2.68953072,138.19,138.13,0.063]
[1745039349407,2.68953072,138.18,138.13,0.063]
[1745039349904,18.64964886,138.17,138.13,0.063]
[1745039350484,8.06816582,138.16,138.13,0.063]
[1745039351308,5.3786351,138.16,138.13,0.063]
[1745039351509,18.64964886,138.2,138.13,0.063]
[1745039351990,2.69041935,138.19,138.13,0.063]
[1745039352192,8.07125805,138.19,138.13,0.063]
[1745039353115,14.82,138.21,138.13,0.063]
[1745039353807,5.37983367,138.2,138.13,0.063]
[1745039354497,5.37983367,138.19,138.13,0.063]
[1745039355416,14.82,138.21,138.13,0.063]
[1745039356009,5.37935106,138.2,138.13,0.063]
[1745039356217,8.06903479,138.2,138.13,0.063]
[1745039357001,2.68968373,138.2,138.13,0.063]
[1745039357196,18.64964886,138.22,138.13,0.063]
[1745039358214,8.0683834,138.21,138.13,0.063]
[1745039359020,2.68948498,138.2,138.13,0.063]
[1745039359417,5.37889842,138.19,138.13,0.063]
[1745039360422,18.64964886,138.22,138.13,0.063]
[1745039360917,2.68877625,138.21,138.13,0.063]
[1745039361219,18.64964886,138.2,138.13,0.063]
[1745039361403,2.68877625,138.19,138.13,0.063]
[1745039361727,5.37733689,138.18,138.13,0.063]
[1745039362529,40.30964886,138.21,138.13,0.063]
[1745039363020,18.64964886,138.19,138.13,0.063]
[1745039363721,2.68853403,138.18,138.13,0.063]
[1745039364324,5.37681695,138.17,138.13,0.063]
[1745039365722,18.64964886,138.19,138.13,0.063]
[1745039366421,40.30964886,138.19,138.13,0.063]
[1745039367027,18.64964886,138.17,138.13,0.063]
[1745039367721,2.68853423,138.16,138.13,0.063]
[1745039367915,8.0656027,138.16,138.13,0.063]
[1745039368525,5.37706847,138.16,138.13,0.063]
[1745039369311,18.64964886,138.17,138.13,0.063]
[1745039369722,2.68812453,138.16,138.13,0.063]
[1745039371028,18.64964886,138.19,138.13,0.063]
[1745039371227,40.30964886,138.19,138.13,0.063]
[1745039371529,24.34723959,138.18,138.13,0.063]
[1745039371709,5.3744797,138.17,138.13,0.063]
[1745039372329,45.68412856,138.17,138.13,0.063]
[1745039372532,18.64964886,138.15,138.13,0.063]
[1745039372829,5.3744797,138.14,138.13,0.063]
[1745039373025,24.02412856,138.14,138.13,0.063]
[1745039373231,48.37136815,138.14,138.13,0.063]
[1745039375130,40.30964886,138.13,138.01,255.66807237]
[1745039375326,40.30964886,138.13,138.01,261.66919575]
[1745039375712,2.68723959,138.12,138.01,261.66919575]
[1745039375915,24.34723959,138.12,138.01,261.66919575]
[1745039376223,24.34723959,138.12,138.01,21.78112338]
[1745039376716,21.66,138.12,138.01,21.78112338]
[1745039376918,25.35050068,138.12,138.02,7.00112338]
[1745039377744,18.64964886,138.11,138.02,7.00112338]
[1745039377945,40.30964886,138.11,138.02,7.00112338]
[1745039378232,40.30964886,138.09,138.02,7.00112338]
[1745039378636,40.30964886,138.09,137.99,0.063]
[1745039379640,41.63034614,138.09,137.99,0.063]
[1745039380127,40.30964886,138.07,137.99,0.063]
[1745039380839,18.64964886,138.07,137.99,0.063]
[1745039381025,18.64964886,138.08,137.99,0.063]
[1745039383640,19.97034614,138.09,137.99,0.063]
[1745039383940,18.64964886,138.08,137.99,0.063]
[1745039385437,1.32069728,138.09,137.99,0.063]
[1745039385643,18.64964886,138.08,137.99,0.063]
[1745039386440,18.64964886,138.08,137.99,7.06508743]
[1745039387141,19.97034614,138.09,137.99,7.06508743]
[1745039387342,41.63034614,138.08,137.99,7.06508743]
[1745039395547,19.97034614,138.08,137.99,7.06508743]
[1745039396045,34.75034614,138.08,137.99,7.06508743]
[1745039396251,19.97034614,138.08,137.99,7.06508743]
[1745039396450,1.32069728,138.08,137.99,0.063]
[1745039396649,18.64964886,138.1,138.0,7.00208743]
[1745039399344,40.30964886,138.1,138.0,7.00208743]
[1745039410468,18.64964886,138.1,138.01,8.61417897]
[1745039410763,14.78,138.11,138.02,7.00208743]
[1745039411143,40.30964886,138.1,138.02,7.00208743]
[1745039412460,18.64964886,138.1,138.02,7.00208743]
[1745039413563,14.78,138.11,138.02,7.00208743]
[1745039414163,18.64964886,138.12,138.02,7.00208743]
[1745039414363,33.42964886,138.12,138.02,7.00208743]
[1745039417443,5.35666058,138.11,138.02,7.00208743]
[1745039424980,5.35666058,138.11,138.0,14.78]
[1745039425166,5.35666058,138.11,138.03,18.64964886]
[1745039425477,14.78,138.12,138.03,25.65173629]
[1745039429365,0.03,138.14,138.03,34.26591526]
[1745039433978,0.03,138.14,138.05,18.64964886]
[1745039437580,0.03,138.14,138.04,7.00208743]
[1745039437899,0.03,138.14,138.05,33.40964886]
[1745039439678,0.03,138.14,138.05,49.02591526]
[1745039439889,0.03,138.14,138.07,18.64964886]
[1745039440397,0.03,138.14,138.07,7.00208743]
[1745039440594,0.03,138.14,138.08,18.64964886]
[1745039440800,0.03,138.14,138.08,25.65173629]
[1745039445586,0.03,138.14,138.08,7.00208743]
[1745039445792,0.03,138.14,138.02,14.76]
[1745039446380,0.03,138.14,138.03,18.64964886]
[1745039448685,0.03,138.14,138.03,25.65173629]
[1745039448990,0.03,138.14,138.05,18.64964886]
[1745039450393,0.03,138.14,138.05,7.00208743]
[1745039450578,0.03,138.14,138.06,34.26591526]
[1745039450778,0.03,138.14,138.08,18.64964886]
[1745039450996,0.03,138.14,138.1,18.64964886]
[1745039451287,0.03,138.14,138.09,7.00208743]
[1745039458401,0.03,138.14,138.07,14.74]
[1745039458783,0.03,138.14,138.04,25.65173629]
[1745039469104,0.03,138.14,138.04,7.00208743]
[1745039469307,0.03,138.14,138.01,18.64964886]
[1745039470213,0.03,138.14,138.0,14.74]
[1745039472601,1.35069728,138.14,138.0,14.74]
[1745039472806,40.30964886,138.11,138.0,14.74]
[1745039473001,18.64964886,138.09,137.99,0.063]
[1745039473314,40.30964886,138.09,137.99,0.063]
[1745039474213,14.74,138.1,137.99,0.063]
[1745039474595,21.72,138.1,137.99,0.063]
[1745039474800,14.74,138.1,137.99,0.063]
[1745039475217,21.72,138.12,137.99,0.063]
[1745039475421,14.74,138.11,137.99,0.063]
[1745039475707,1.35069728,138.14,137.99,0.063]
[1745039475915,16.09069728,138.14,138.01,18.64964886]
[1745039476211,14.77,138.14,138.02,21.74208743]
[1745039478114,14.77,138.14,138.03,18.64964886]
[1745039478310,18.64964886,138.13,138.02,21.74208743]
[1745039479223,14.77,138.14,138.03,18.64964886]
[1745039482821,0.03,138.14,138.03,18.64964886]
[1745039483022,0.03,138.14,138.03,42.643464]
[1745039483213,0.03,138.14,138.05,18.64964886]
[1745039483520,0.03,138.14,138.07,18.64964886]
[1745039483722,0.03,138.14,138.07,33.38964886]
[1745039484321,0.03,138.14,138.07,40.39173629]
[1745039484909,0.03,138.14,138.08,7.00208743]
[1745039488426,0.03,138.14,138.09,18.64964886]
[1745039488634,0.03,138.14,138.08,7.00208743]
[1745039488824,0.03,138.14,138.03,14.74]
[1745039490930,18.67964886,138.14,138.03,14.74]
[1745039492735,5.34666818,138.13,138.03,14.74]
[1745039493734,18.64964886,138.12,138.03,14.74]
[1745039494032,18.64964886,138.12,138.0,7.00208743]
[1745039494739,21.72,138.11,138.0,7.00208743]
[1745039495031,21.72,138.13,138.0,18.64964886]
[1745039495229,5.33730617,138.12,138.0,18.64964886]
[1745039495432,5.33730617,138.12,137.99,14.803]
[1745039496530,45.70695503,138.12,137.99,14.803]
[1745039496730,18.64964886,138.11,137.99,14.803]
[1745039496924,18.64964886,138.09,137.99,0.063]
[1745039506237,21.72,138.08,137.99,0.063]
[1745039509041,18.64964886,138.08,137.99,0.063]
[1745039515551,14.72,138.09,137.99,0.063]
[1745039520959,18.64964886,138.08,137.99,0.063]
[1745039534067,5.34829569,138.07,137.99,0.063]
[1745039535170,18.64964886,138.08,137.99,0.063]
[1745039535371,2.67647328,138.07,137.99,0.063]
[1745039536253,18.64964886,138.08,137.99,0.063]
[1745039536951,5.35551626,138.07,137.99,0.063]
[1745039537273,18.64964886,138.06,137.99,0.063]
[1745039537755,5.35551626,138.05,137.99,0.063]
[1745039539073,18.64964886,138.06,137.99,0.063]
[1745039539255,2.67986885,138.05,137.99,0.063]
[1745039540272,18.64964886,138.06,137.99,0.063]
[1745039540869,5.36003621,138.05,137.99,0.063]
[1745039541581,14.72,138.05,137.99,0.063]
[1745039542688,5.35845072,138.04,137.99,0.063]
[1745039543374,14.72,138.05,137.99,0.063]
[1745039546478,40.36964886,138.04,137.99,0.063]
[1745039552877,18.64964886,138.04,137.99,0.063]
[1745039553886,14.72,138.05,137.99,0.063]
[1745039555183,21.72,138.09,137.99,0.063]
[1745039555390,55.08964886,138.08,137.99,0.063]
[1745039561895,21.72,138.05,137.99,0.063]
[1745039562489,40.36964886,138.04,137.99,0.063]
[1745039562693,18.64964886,138.02,137.99,0.063]
[1745039575301,5.35811448,138.01,137.99,0.063]
[1745039575904,18.64964886,138.02,137.99,0.063]
[1745039578511,14.72,138.03,137.99,0.063]
[1745039579933,18.64964886,138.02,137.99,0.063]
[1745039582028,14.72,138.03,137.99,0.063]
[1745039582932,14.72,138.05,137.99,0.063]
[1745039583115,18.64964886,138.06,137.99,0.063]
[1745039583322,33.36964886,138.06,137.99,0.063]
[1745039583511,5.35965744,138.05,137.99,0.063]
[1745039583944,2.67952644,138.04,137.99,0.063]
[1745039584832,18.64964886,138.07,137.99,0.063]
[1745039585135,33.39964886,138.08,137.99,0.063]
[1745039588534,14.75,138.08,137.99,0.063]
[1745039591142,18.64964886,138.07,137.99,0.063]
[1745039594248,55.11964886,138.08,137.99,0.063]
[1745039594438,18.64964886,138.07,137.99,0.063]
[1745039597146,40.36964886,138.07,137.99,0.063]
[1745039600441,24.39534175,138.06,137.99,0.063]
[1745039600742,21.72,138.06,137.99,0.063]
[1745039600925,18.64964886,138.04,137.99,0.063]
[1745039602450,21.72,138.06,137.99,0.063]
[1745039602753,18.64964886,138.05,137.99,0.063]
[1745039604145,21.75,138.08,137.99,0.063]
[1745039604446,40.36964886,138.07,137.99,0.063]
[1745039604644,14.7,138.06,137.99,0.063]
[1745039604849,20.05365078,138.06,137.99,0.063]
[1745039606063,14.7,138.06,137.99,0.063]
[1745039607951,40.36964886,138.03,137.99,0.063]
[1745039608853,18.64964886,138.01,137.99,0.063]
[1745039611245,40.36964886,138.01,137.99,0.063]
[1745039611555,18.64964886,138.01,137.99,0.063]
[1745039614060,40.36964886,138.01,137.99,0.063]
[1745039615932,14.7,138.02,137.99,0.063]
[1745039617358,18.64964886,138.01,137.99,0.063]
[1745039619366,21.72,138.0,137.99,0.063]
[1745039619669,18.64964886,138.0,137.99,0.063]
[1745039626373,18.64964886,138.01,137.99,0.063]
[1745039627053,36.42,138.02,137.99,0.063]
[1745039627054,40.36964886,138.0,137.99,0.063]
[1745039629761,55.06964886,138.0,137.99,0.063]
[1745039637078,0.03,138.07,137.99,0.063]
[1745039637282,21.72,138.03,137.99,0.063]
[1745039637469,2.67096454,138.02,137.99,0.063]
[1745039637675,18.64964886,138.01,137.99,0.063]
[1745039637980,55.06964886,138.01,137.99,0.063]
[1745039639780,5.34257814,138.0,137.99,0.063]
[1745039639984,45.712227,138.0,137.99,0.063]
[1745039641985,48.38303794,138.0,137.99,0.063]
[1745039645771,49.70373522,138.0,137.99,0.063]
[1745039646387,40.36964886,137.96,137.95,0.063]
[1745039646690,55.06964886,137.96,137.95,0.063]
[1745039646870,14.7,137.96,137.95,0.063]
[1745039648295,59.05919952,137.96,137.95,0.063]
[1745039648985,64.39799492,137.96,137.95,0.063]
[1745039651994,61.72914154,137.96,137.95,0.063]
[1745039652294,56.39034614,137.96,137.95,0.063]
[1745039674117,18.64964886,137.95,137.84,18.64964886]
[1745039674616,40.36964886,137.95,137.83,20.54633061]
[1745039674794,40.36964886,137.95,137.83,20.04633061]
[1745039678022,40.36964886,137.95,137.83,28.79437935]
[1745039679617,18.64964886,137.95,137.84,18.64964886]
[1745039680097,21.72,137.94,137.84,18.64964886]
[1745039680301,18.64964886,137.95,137.84,24.61797947]
[1745039681808,18.64964886,137.95,137.84,5.96833061]
[1745039686118,40.36964886,137.95,137.83,22.82604874]
[1745039687522,41.69034614,137.95,137.83,8.74804874]
[1745039687720,40.36964886,137.93,137.83,8.74804874]
[1745039690429,40.36964886,137.94,137.83,8.74804874]
[1745039698431,27.06303411,137.93,137.83,8.74804874]
[1745039699228,18.64964886,137.91,137.83,8.74804874]
[1745039700030,40.36964886,137.93,137.83,8.74804874]
[1745039700931,18.64964886,137.91,137.83,8.74804874]
[1745039701229,40.36964886,137.91,137.83,8.74804874]
[1745039701535,40.36964886,137.91,137.81,0.063]
[1745039704432,18.64964886,137.91,137.81,0.063]
[1745039704732,14.7,137.91,137.81,0.063]
[1745039704909,14.7,137.91,137.82,18.64964886]
[1745039705110,14.7,137.94,137.82,27.3976976]
[1745039705310,14.7,137.94,137.83,5.96833061]
[1745039705522,14.7,137.94,137.84,8.74804874]
[1745039705816,19.97034614,137.95,137.84,29.41637935]
[1745039708534,1.32069728,137.95,137.85,18.64964886]
[1745039708837,14.7,137.96,137.85,27.3976976]
[1745039711157,14.7,137.96,137.85,8.74804874]
[1745039711330,14.7,137.96,137.85,27.3976976]
[1745039713326,14.7,137.96,137.86,8.74804874]
[1745039714240,18.64964886,137.97,137.86,8.74804874]
[1745039714537,36.4,137.99,137.87,18.64964886]
[1745039714725,23.9810305,137.98,137.86,8.74804874]
[1745039715549,18.64964886,137.98,137.86,8.74804874]
[1745039723149,18.64964886,137.98,137.87,18.64964886]
[1745039723352,18.64964886,137.98,137.87,27.3976976]
[1745039725556,18.64964886,137.98,137.87,8.74804874]
[1745039726047,33.35964886,138.01,137.87,16.41108106]
[1745039726237,33.35964886,138.01,137.88,8.74804874]
[1745039726434,33.35964886,138.01,137.89,14.68]
[1745039726628,33.35964886,138.01,137.89,23.42804874]
[1745039732334,33.35964886,138.01,137.89,14.68]
[1745039732538,33.35964886,138.01,137.89,23.42804874]
[1745039732739,33.35964886,138.01,137.89,14.68]
[1745039739045,33.35964886,138.01,137.89,23.42775629]
[1745039754664,0.03,138.01,137.9,18.64964886]
[1745039754960,0.03,138.01,137.9,42.75487919]
[1745039761169,0.03,138.01,137.91,14.66]
[1745039761365,0.03,138.01,137.92,18.64964886]
[1745039762572,0.03,138.01,137.92,27.85962737]
[1745039764770,0.03,138.01,137.92,18.64964886]
[1745039769578,0.03,138.01,137.92,27.85962737]
[1745039770778,0.03,138.01,137.92,9.20997851]
[1745039770980,0.03,138.01,137.92,27.85962737]
[1745039771675,0.03,138.01,137.9,7.15277505]
[1745039771872,0.03,138.01,137.89,14.66]
[1745039782090,0.03,138.01,137.89,21.81277505]
[1745039788490,21.72,138.0,137.89,21.81277505]
[1745039790973,40.39964886,138.01,137.89,21.81277505]
[1745039792393,55.05964886,138.01,137.89,21.81277505]
[1745039800991,27.03133771,138.0,137.89,21.81277505]
[1745039802297,21.72,138.0,137.89,21.81277505]
[1745039803583,18.64964886,137.99,137.89,21.81277505]
[1745039804185,18.64964886,137.99,137.89,31.02275356]
[1745039812116,40.38964886,138.0,137.89,21.81277505]
[1745039812809,7.99763723,137.99,137.89,21.81277505]
[1745039813508,18.64964886,137.98,137.89,21.81277505]
[1745039816221,5.33622139,137.97,137.89,21.81277505]
[1745039817414,18.64964886,137.98,137.89,21.81277505]
[1745039818411,40.38964886,137.99,137.89,21.81277505]
[1745039819114,8.00643503,137.98,137.89,21.81277505]
[1745039819713,5.3376013,137.97,137.89,21.81277505]
[1745039820317,40.38964886,137.99,137.89,21.81277505]
[1745039821415,5.33607099,137.98,137.89,21.81277505]
[1745039822314,5.33607099,137.97,137.89,21.81277505]
[1745039822613,8.00383596,137.97,137.89,21.81277505]
[1745039823217,40.38964886,137.99,137.89,21.81277505]
[1745039823828,18.64964886,137.97,137.89,21.81277505]
[1745039824520,40.38964886,137.99,137.89,21.81277505]
[1745039825018,18.64964886,137.97,137.89,21.81277505]
[1745039825717,18.64964886,137.97,137.89,7.15277505]
[1745039825909,40.38964886,137.99,137.87,14.66]
[1745039826918,18.64964886,137.97,137.87,14.66]
[1745039827997,40.38964886,137.99,137.87,14.66]
[1745039828201,18.64964886,137.97,137.87,14.66]
[1745039829520,40.38964886,137.99,137.87,14.66]
[1745039829822,18.64964886,137.97,137.87,14.66]
[1745039830217,18.64964886,137.95,137.86,16.36275356]
[1745039830414,40.38964886,137.95,137.82,18.64964886]
[1745039830722,18.64964886,137.93,137.82,18.64964886]
[1745039831023,18.64964886,137.93,137.81,263.243]
[1745039831428,18.64964886,137.93,137.81,279.20809483]
[1745039832123,18.64964886,137.94,137.81,279.20809483]
[1745039832326,40.38964886,137.94,137.81,279.20809483]
[1745039833723,40.38964886,137.94,137.81,30.68809483]
[1745039838025,41.71034614,137.94,137.81,30.68809483]
[1745039838415,18.64964886,137.91,137.81,30.68809483]
[1745039839428,21.74,137.92,137.81,30.68809483]
[1745039841518,21.74,137.9,137.81,30.68809483]
[1745039841713,18.64964886,137.9,137.81,30.68809483]
[1745039842526,18.64964886,137.9,137.81,16.02809483]
[1745039842839,40.38964886,137.88,137.81,0.063]
[1745039850641,1.32069728,137.9,137.81,0.063]
[1745039851133,18.64964886,137.89,137.81,0.063]
[1745039851334,18.64964886,137.89,137.81,6.81811632]
[1745039851834,34.63034614,137.9,137.81,6.81811632]
[1745039860356,34.13034614,137.9,137.81,6.81811632]
[1745039860557,33.30964886,137.9,137.81,6.81811632]
[1745039860852,18.64964886,137.89,137.81,6.81811632]
[1745039864644,40.38964886,137.89,137.81,6.81811632]
[1745039865029,40.38964886,137.89,137.81,0.063]
[1745039870851,41.71532503,137.89,137.81,0.063]
[1745039871038,40.38964886,137.87,137.81,0.063]
[1745039883262,18.64964886,137.83,137.81,0.063]
[1745039889361,40.38964886,137.83,137.81,0.063]
[1745039890349,44.64964886,137.82,137.81,0.063]
[1745039894348,21.74,137.84,137.81,0.063]
[1745039894349,18.64964886,137.83,137.81,0.063]
[1745039895372,26.0,137.84,137.81,0.063]
[1745039896155,33.28964886,137.85,137.81,0.063]
[1745039896558,59.28964886,137.85,137.81,0.063]
[1745039897174,81.02964886,137.85,137.81,0.063]
[1745039897471,40.38964886,137.84,137.81,0.063]
[1745039897973,44.64964886,137.82,137.81,0.063]
[1745039899466,18.64964886,137.81,137.75,6.58105632]
[1745039903580,18.64964886,137.81,137.75,6.64405632]
[1745039904982,40.38964886,137.83,137.75,6.64405632]
[1745039913886,40.38964886,137.83,137.75,32.64405632]
[1745039917875,26.0,137.84,137.75,32.64405632]
[1745039917876,40.38964886,137.81,137.75,32.64405632]
[1745039921891,40.38964886,137.81,137.75,26.063]
[1745039922486,18.64964886,137.81,137.75,26.063]
[1745039922995,40.38964886,137.81,137.75,26.063]
[1745039923196,40.38964886,137.81,137.75,0.063]
[1745039925998,55.02964886,137.81,137.75,0.063]
[1745039932822,22.85921625,137.8,137.75,0.063]
[1745039935124,6.5321527,137.78,137.75,0.063]
[1745039936208,22.86253446,137.78,137.75,0.063]
[1745039936411,18.64964886,137.77,137.75,0.063]
[1745039937416,6.53310104,137.76,137.75,0.063]
[1745039939515,25.1822757,137.77,137.75,0.063]
[1745039945330,16.33038176,137.78,137.75,0.063]
[1745039945523,34.98003062,137.78,137.75,0.063]
[1745039946717,16.33038176,137.78,137.75,0.063]
[1745039946921,34.98003062,137.78,137.75,0.063]
[1745039947838,6.53167864,137.79,137.75,0.063]
[1745039951355,18.64964886,137.8,137.75,0.063]
[1745039951533,66.38964886,137.8,137.75,0.063]
[1745039951839,18.64964886,137.78,137.75,0.063]
[1745039952739,6.53262684,137.77,137.75,0.063]
[1745039955644,18.64964886,137.76,137.75,0.063]
[1745039956942,23.99872257,137.76,137.75,0.063]
[1745039957345,45.73872257,137.76,137.75,0.063]
[1745039958246,52.27182361,137.76,137.75,0.063]
[1745039959649,46.9227499,137.76,137.75,0.063]
[1745039961545,52.26936157,137.76,137.75,0.063]
[1745039962643,46.9227499,137.76,137.75,0.063]
[1745039965741,25.1827499,137.76,137.75,0.063]
[1745039967245,46.9227499,137.76,137.75,0.063]
[1745039967954,25.1827499,137.76,137.75,0.063]
[1745039969252,6.53262684,137.77,137.75,0.063]
[1745039972654,6.53310104,137.76,137.75,0.063]
[1745039974032,18.64964886,137.77,137.75,0.063]
[1745039974033,6.53262684,137.77,137.75,0.063]
[1745039978744,6.53167864,137.79,137.75,0.063]
[1745039981646,6.53073071,137.81,137.75,0.063]
[1745039981845,2.68065669,137.8,137.75,0.063]
[1745039982046,5.36005088,137.79,137.75,0.063]
[1745039982748,25.18037957,137.81,137.75,0.063]
[1745039983062,6.53073071,137.81,137.75,0.063]
[1745039983465,5.35554511,137.8,137.75,0.063]
[1745039984359,25.17990571,137.82,137.75,0.063]
[1745039985248,8.03088513,137.81,137.75,0.063]
[1745039985452,6.53120464,137.8,137.75,0.063]
[1745039987246,6.53073071,137.81,137.75,0.063]
[1745039987865,6.5599726,137.83,137.76,26.0]
[1745039989868,0.03,137.83,137.77,6.53262684]
[1745039990168,0.03,137.83,137.8,26.0]
[1745039991758,0.03,137.83,137.81,33.26964886]
[1745039991970,0.03,137.83,137.82,6.53025685]
[1745039992671,0.03,137.83,137.82,26.0]
[1745039992877,0.03,137.83,137.81,26.0]
[1745039993071,0.03,137.83,137.82,26.0]
[1745039997483,0.03,137.83,137.8,32.53116212]
[1745040004086,0.03,137.83,137.8,48.85917373]
[1745040004267,0.03,137.83,137.81,18.64964886]